bitfinex/quotes_SOLUSD_20260302
["timestamp","ask_amount","ask_price","bid_price","bid_amount"]
[1772477457606,11.3918571,87.782,87.75,22.08673749]
[1772477457803,11.3918571,87.782,87.75,10.69073803]
[1772477458005,44.28766663,87.782,87.75,10.69073803]
[1772477458202,44.28766663,87.782,87.751,4.15215764]
[1772477458203,39.87149985,87.782,87.751,4.15215764]
[1772477459206,11.3918571,87.782,87.752,4.15215764]
[1772477460205,4.41616678,87.788,87.752,4.15215764]
[1772477460508,39.86695826,87.792,87.761,4.15215764]
[1772477461088,11.3905595,87.792,87.761,4.15215764]
[1772477461287,11.3905595,87.792,87.771,4.15215764]
[1772477461795,11.3905595,87.792,87.719,45.60001]
[1772477461796,4.41616678,87.791,87.7,91.21976913]
[1772477462012,4.41616678,87.769,87.72,10.69073803]
[1772477462321,187.9442318,87.792,87.72,10.69073803]
[1772477462322,4.41616678,87.759,87.72,10.69073803]
[1772477462520,10.69073803,87.75,87.71,10.69073803]
[1772477462721,4.41616678,87.739,87.705,11.40177569]
[1772477462890,4.41616678,87.749,87.71,14.84289567]
[1772477463208,4.41616678,87.749,87.72,10.69073803]
[1772477463593,4.41616678,87.749,87.71,4.15215764]
[1772477463799,4.41616678,87.749,87.71,14.84289567]
[1772477464517,4.41616678,87.747,87.711,11.40107854]
[1772477464810,4.41616678,87.739,87.699,11.40263857]
[1772477465010,4.41616678,87.739,87.701,4.15215764]
[1772477465197,4.41616678,87.739,87.71,10.69196779]
[1772477465388,44.30311577,87.748,87.711,4.15215764]
[1772477466608,4.41616678,87.747,87.712,11.40094855]
[1772477467109,4.41616678,87.747,87.711,4.15215764]
[1772477467315,4.41616678,87.739,87.695,11.40310023]
[1772477467909,4.41616678,87.739,87.7,10.69196779]
[1772477468710,4.41616678,87.737,87.701,11.40237853]
[1772477469720,4.70048992,87.729,87.662,4.15215764]
[1772477469899,4.41616678,87.709,87.661,30.56766329]
[1772477470215,4.41616678,87.719,87.67,14.84412543]
[1772477470407,4.41616678,87.709,87.671,4.15215764]
[1772477470617,4.41616678,87.709,87.672,15.55830783]
[1772477470618,11.4014685,87.708,87.672,15.55830783]
[1772477470813,4.41616678,87.707,87.68,10.69196779]
[1772477471215,4.41616678,87.707,87.672,15.55830783]
[1772477471600,11.40097572,87.712,87.681,4.15215764]
[1772477472322,11.40097572,87.712,87.69,10.69196779]
[1772477472522,11.40097572,87.712,87.681,4.15215764]
[1772477473104,11.40016872,87.718,87.69,10.69196779]
[1772477473818,4.41616678,87.717,87.68,10.69196779]
[1772477474014,11.40016872,87.718,87.661,19.16018947]
[1772477474015,4.41616678,87.709,87.661,19.16018947]
[1772477474217,39.90059052,87.718,87.661,19.16018947]
[1772477474218,4.41616678,87.699,87.661,19.16018947]
[1772477474808,4.41616678,87.699,87.661,30.56773965]
[1772477475312,4.15395359,87.689,87.661,19.16018947]
[1772477477319,11.40406897,87.688,87.661,19.16018947]
[1772477478227,10.69196779,87.7,87.661,19.16018947]
[1772477478228,4.44233511,87.699,87.67,10.69196779]
[1772477478928,4.44233511,87.718,87.69,10.69196779]
[1772477479229,4.44233511,87.699,87.661,19.16018947]
[1772477479402,4.44233511,87.695,87.661,19.16018947]
[1772477479804,4.44233511,87.689,87.661,19.16018947]
[1772477480028,85.50321491,87.716,87.65,0.2]
[1772477480029,4.44233511,87.679,87.65,0.2]
[1772477480328,3.69383402,87.711,87.65,0.2]
[1772477480329,4.44233511,87.669,87.65,0.2]
[1772477481246,11.40442836,87.686,87.652,4.22507233]
[1772477481710,15.84676347,87.686,87.652,4.22507233]
[1772477481911,4.44233511,87.685,87.652,4.22507233]
[1772477482913,4.44233511,87.685,87.66,10.69196779]
[1772477483429,4.44233511,87.685,87.661,11.40758147]
[1772477483731,11.68579164,87.708,87.671,4.22507233]
[1772477483921,11.4014685,87.708,87.671,4.22507233]
[1772477485231,10.69196779,87.71,87.672,15.63122252]
[1772477485936,4.44233511,87.709,87.672,15.63122252]
[1772477486236,4.44233511,87.709,87.673,4.22507233]
[1772477486430,4.44233511,87.709,87.68,10.69196779]
[1772477486612,4.44233511,87.709,87.681,4.22507233]
[1772477487020,4.44233511,87.709,87.68,10.69196779]
[1772477487218,4.44233511,87.709,87.672,44.14659801]
[1772477487419,11.4014685,87.708,87.681,4.22507233]
[1772477488313,11.40093609,87.713,87.681,4.22507233]
[1772477488928,11.40093609,87.713,87.672,39.92152568]
[1772477488929,11.40036409,87.717,87.691,4.22507233]
[1772477489432,4.44233511,87.726,87.691,4.22507233]
[1772477489632,4.44233511,87.726,87.672,28.51537549]
[1772477489633,4.44233511,87.719,87.68,10.69196779]
[1772477489834,4.44233511,87.719,87.681,15.63005174]
[1772477490036,4.44233511,87.719,87.69,10.69196779]
[1772477490619,4.44233511,87.719,87.682,4.22507233]
[1772477491640,4.44233511,87.717,87.68,22.09703167]
[1772477491824,4.44233511,87.717,87.681,4.22507233]
[1772477492441,4.44233511,87.717,87.69,10.69196779]
[1772477492619,4.44233511,87.717,87.68,22.09703167]
[1772477492818,4.44233511,87.717,87.681,4.22507233]
[1772477494116,10.69196779,87.73,87.657,61.6]
[1772477494117,44.33974177,87.725,87.691,4.22507233]
[1772477494331,44.33974177,87.725,87.682,39.91697269]
[1772477494332,4.44233511,87.719,87.678,11.40529947]
[1772477494523,4.44233511,87.719,87.68,10.69196779]
[1772477494735,4.44233511,87.719,87.681,4.22507233]
[1772477495038,4.44233511,87.719,87.691,4.22507233]
[1772477495340,4.44233511,87.719,87.683,4.22507233]
[1772477496132,4.44233511,87.717,87.683,4.22507233]
[1772477496433,4.44233511,87.717,87.683,15.62975724]
[1772477497517,4.44233511,87.717,87.683,4.22507233]
[1772477497723,4.44233511,87.709,87.669,11.40648564]
[1772477498124,4.44233511,87.699,87.667,4.22507233]
[1772477499536,4.44233511,87.699,87.67,10.69196779]
[1772477499729,4.72665825,87.716,87.681,4.22507233]
[1772477500222,4.44233511,87.711,87.681,4.22507233]
[1772477500420,4.44233511,87.711,87.677,11.40543051]
[1772477501536,4.44233511,87.738,87.701,4.22507233]
[1772477501848,11.39796198,87.735,87.71,14.91704012]
[1772477502143,15.84029709,87.735,87.71,4.22507233]
[1772477502346,4.44233511,87.734,87.71,4.22507233]
[1772477502648,4.44233511,87.734,87.704,11.40192861]
[1772477502824,4.44233511,87.734,87.7,26.31951786]
[1772477503025,4.44233511,87.725,87.683,4.22507233]
[1772477503337,4.44233511,87.725,87.691,4.22507233]
[1772477504440,11.39938899,87.724,87.7,10.69196779]
[1772477504648,11.39938899,87.724,87.701,4.22507233]
[1772477506245,11.39885373,87.729,87.711,4.22507233]
[1772477506756,28.49424986,87.737,87.67,10.69196779]
[1772477506757,4.72665825,87.719,87.67,10.69196779]
[1772477507054,4.44233511,87.709,87.666,11.40693085]
[1772477507223,4.44233511,87.709,87.666,15.63200318]
[1772477507424,4.44233511,87.709,87.67,10.69196779]
[1772477507643,4.44233511,87.709,87.67,14.98920699]
[1772477508639,11.4014685,87.708,87.671,11.40628029]
[1772477508842,4.34727396,87.707,87.671,11.40628029]
[1772477509046,4.34727396,87.695,87.651,4.2972392]
[1772477509348,4.34727396,87.689,87.651,4.2972392]
[1772477509546,4.34727396,87.699,87.661,4.2972392]
[1772477510828,4.34727396,87.689,87.65,0.2]
[1772477511026,4.34727396,87.689,87.651,11.40888295]
[1772477511359,4.34727396,87.689,87.652,4.2972392]
[1772477512646,4.34727396,87.689,87.65,10.89196779]
[1772477512846,4.34727396,87.687,87.65,10.89196779]
[1772477513053,4.34727396,87.687,87.651,11.40888295]
[1772477513349,4.34727396,87.687,87.652,4.2972392]
[1772477513548,4.34727396,87.685,87.65,0.2]
[1772477513735,4.34727396,87.685,87.65,10.89196779]
[1772477513938,4.34727396,87.685,87.651,11.40888295]
[1772477514331,4.34727396,87.685,87.65,0.2]
[1772477514738,39.91606221,87.684,87.65,0.2]
[1772477514942,4.34727396,87.683,87.65,0.2]
[1772477515624,4.34727396,87.683,87.652,4.2972392]
[1772477516344,15.75043263,87.695,87.661,4.2972392]
[1772477516527,15.75043263,87.695,87.67,14.98920699]
[1772477516727,44.25832931,87.695,87.67,14.98920699]
[1772477517044,44.25832931,87.695,87.651,39.93109034]
[1772477517045,4.34727396,87.685,87.651,4.2972392]
[1772477517249,4.34727396,87.679,87.65,0.2]
[1772477517950,96.92684872,87.695,87.65,0.2]
[1772477517951,11.40315867,87.695,87.67,4.2972392]
[1772477518349,11.40231407,87.702,87.671,4.2972392]
[1772477518731,4.34727396,87.709,87.671,4.2972392]
[1772477518732,11.4017264,87.707,87.671,4.2972392]
[1772477518931,11.4017264,87.707,87.672,11.40615019]
[1772477519137,11.4017264,87.707,87.673,4.2972392]
[1772477519634,4.34727396,87.706,87.673,4.2972392]
[1772477520456,11.4017264,87.707,87.673,4.2972392]
[1772477520688,11.4017264,87.707,87.672,39.92152568]
[1772477520689,11.39938899,87.724,87.691,4.2972392]
[1772477520830,4.34727396,87.723,87.691,4.2972392]
[1772477521030,4.34727396,87.732,87.701,4.2972392]
[1772477521235,15.74562347,87.732,87.701,4.2972392]
[1772477522150,4.34727396,87.731,87.701,4.2972392]
[1772477522354,4.6315971,87.729,87.69,10.69196779]
[1772477522658,4.6315971,87.729,87.683,4.2972392]
[1772477522659,4.34727396,87.709,87.67,14.98920699]
[1772477522956,4.34727396,87.679,87.622,11.41265892]
[1772477523140,4.34727396,87.679,87.616,15.32815158]
[1772477523141,10.69196779,87.66,87.624,4.2972392]
[1772477523344,4.34727396,87.649,87.616,15.32815158]
[1772477524054,15.03924175,87.66,87.621,4.2972392]
[1772477524237,4.34727396,87.659,87.621,4.2972392]
[1772477525065,4.34727396,87.657,87.621,4.2972392]
[1772477525234,39.92790161,87.658,87.616,19.62539078]
[1772477525235,4.34727396,87.649,87.616,19.62539078]
[1772477526553,11.40927345,87.648,87.617,4.2972392]
[1772477527558,4.34727396,87.647,87.578,4.2972392]
[1772477527862,4.34727396,87.647,87.54,0.2]
[1772477527863,4.34727396,87.595,87.55,4.2972392]
[1772477528038,10.71730268,87.6,87.54,0.2]
[1772477528039,10.71730268,87.57,87.54,0.2]
[1772477528239,4.34727396,87.559,87.54,1e-08]
[1772477528454,10.71730268,87.55,87.54,1e-08]
[1772477528649,4.34727396,87.549,87.54,1e-08]
[1772477528850,4.34727396,87.549,87.5,10.91730268]
[1772477528851,4.34727396,87.545,87.501,11.42844081]
[1772477529046,15.06457664,87.53,87.5,0.2]
[1772477529244,0.28432314,87.54,87.501,4.2972392]
[1772477529543,4.34727396,87.544,87.502,4.2972392]
[1772477529937,4.34727396,87.539,87.502,4.2972392]
[1772477530155,4.34727396,87.539,87.503,4.2972392]
[1772477530460,11.42269689,87.545,87.503,4.2972392]
[1772477530758,11.42208617,87.55,87.521,4.2972392]
[1772477530955,11.42059402,87.562,87.53,10.71730268]
[1772477531135,11.42059402,87.562,87.531,4.2972392]
[1772477531555,4.34727396,87.575,87.541,4.2972392]
[1772477531757,11.41825047,87.58,87.551,4.2972392]
[1772477533541,22.13555315,87.58,87.551,4.2972392]
[1772477533753,11.41825047,87.58,87.551,4.2972392]
[1772477534060,47.92135618,87.585,87.571,4.2972392]
[1772477534240,61.3673737,87.61,87.571,4.2972392]
[1772477534441,4.34727396,87.608,87.556,4.2972392]
[1772477534648,64.01510613,87.608,87.58,10.71730268]
[1772477535446,59.66783217,87.608,87.58,10.71730268]
[1772477535638,59.66783217,87.608,87.581,4.2972392]
[1772477536544,4.12839494,87.599,87.56,15.10450285]
[1772477536744,4.12839494,87.599,87.561,4.38720017]
[1772477536958,4.12839494,87.599,87.57,10.71730268]
[1772477537254,4.12839494,87.599,87.561,4.38720017]
[1772477537667,11.41578574,87.598,87.57,14.93558868]
[1772477537859,11.41578574,87.598,87.571,4.218286]
[1772477540268,4.1456007,87.575,87.524,11.42539068]
[1772477540452,10.71730268,87.6,87.524,11.42539068]
[1772477540453,10.71730268,87.56,87.524,11.42539068]
[1772477540650,4.1456007,87.559,87.522,11.42569868]
[1772477540854,4.1456007,87.559,87.522,15.64398468]
[1772477541363,4.1456007,87.572,87.531,4.218286]
[1772477541549,14.86290338,87.57,87.531,4.218286]
[1772477541745,14.86290338,87.58,87.541,4.218286]
[1772477542269,11.41826236,87.579,87.551,4.218286]
[1772477542447,4.1456007,87.591,87.56,10.71730268]
[1772477542448,11.41738889,87.586,87.56,10.71730268]
[1772477542653,11.41738889,87.586,87.561,4.218286]
[1772477543968,4.1456007,87.589,87.551,4.218286]
[1772477544149,4.1456007,87.589,87.551,15.64020008]
[1772477544347,4.1456007,87.589,87.552,4.218286]
[1772477545867,4.1456007,87.589,87.56,10.71730268]
[1772477546068,11.41708909,87.588,87.554,4.218286]
[1772477546976,10.71730268,87.6,87.553,11.42165317]
[1772477546977,45.63089721,87.66,87.582,4.218286]
[1772477547160,10.71730268,87.62,87.582,4.218286]
[1772477547673,4.1456007,87.621,87.582,4.218286]
[1772477548267,44.09081868,87.62,87.582,15.63605478]
[1772477548466,39.94521798,87.62,87.582,15.63605478]
[1772477548668,4.1456007,87.619,87.582,15.63605478]
[1772477549074,4.1456007,87.619,87.582,4.218286]
[1772477549561,4.1456007,87.619,87.583,11.41774088]
[1772477549761,4.1456007,87.619,87.582,4.218286]
[1772477550365,15.55878064,87.618,87.59,10.71730268]
[1772477550564,24.0892993,87.628,87.601,4.218286]
[1772477550975,11.41238041,87.625,87.601,4.218286]
[1772477553364,10.71730268,87.62,87.576,4.218286]
[1772477553779,10.71730268,87.61,87.576,4.218286]
[1772477553978,4.1456007,87.609,87.576,4.218286]
[1772477554574,4.1456007,87.589,87.543,4.218286]
[1772477554776,4.1456007,87.569,87.523,4.218286]
[1772477555179,39.96893842,87.568,87.525,4.218286]
[1772477555488,11.41969669,87.568,87.531,4.218286]
[1772477556369,4.1456007,87.567,87.531,4.218286]
[1772477556767,4.1456007,87.559,87.512,4.218286]
[1772477557286,4.1456007,87.549,87.513,15.64515972]
[1772477557485,4.1456007,87.549,87.514,4.218286]
[1772477558282,10.71730268,87.54,87.503,4.218286]
[1772477558589,4.1456007,87.539,87.503,4.218286]
[1772477558990,4.42992384,87.557,87.511,4.218286]
[1772477559171,4.1456007,87.549,87.511,4.218286]
[1772477559377,4.1456007,87.549,87.511,11.4270103]
[1772477559378,15.56790617,87.548,87.511,11.4270103]
[1772477559581,15.56790617,87.548,87.512,4.218286]
[1772477560180,4.1456007,87.547,87.512,4.218286]
[1772477560389,11.42230547,87.548,87.521,4.218286]
[1772477560774,11.42230547,87.548,87.512,11.42700429]
[1772477560775,10.71730268,87.58,87.541,4.218286]
[1772477561084,4.1456007,87.579,87.541,4.218286]
[1772477561282,4.1456007,87.577,87.541,4.218286]
[1772477561685,4.1456007,87.577,87.54,10.71730268]
[1772477561686,11.41839274,87.578,87.543,4.218286]
[1772477561886,39.9643746,87.578,87.543,4.218286]
[1772477562086,0.28432314,87.574,87.543,4.218286]
[1772477562273,4.1456007,87.571,87.532,4.218286]
[1772477562467,4.1456007,87.559,87.507,4.218286]
[1772477562675,4.1456007,87.549,87.511,4.218286]
[1772477563072,10.71730268,87.54,87.511,4.218286]
[1772477563270,4.1456007,87.539,87.511,4.218286]
[1772477563489,11.42361031,87.538,87.511,4.218286]
[1772477563894,11.42361031,87.538,87.511,15.64540388]
[1772477564695,11.42361031,87.538,87.421,9.37350657]
[1772477564696,10.71730268,87.52,87.481,4.218286]
[1772477565189,4.1456007,87.519,87.481,4.218286]
[1772477565491,4.1456007,87.517,87.481,4.218286]
[1772477565718,4.1456007,87.517,87.482,4.218286]
[1772477566584,45.67394679,87.578,87.483,4.218286]
[1772477566769,4.1456007,87.556,87.501,4.218286]
[1772477566970,4.1456007,87.539,87.491,4.218286]
[1772477567194,4.1456007,87.519,87.481,4.218286]
[1772477567381,4.45774922,87.553,87.491,4.05287228]
[1772477567583,4.45774922,87.537,87.493,4.05287228]
[1772477567786,4.17342608,87.529,87.493,4.05287228]
[1772477568088,0.28432314,87.526,87.482,4.05287228]
[1772477568265,4.00991733,87.519,87.482,4.05287228]
[1772477568467,4.00991733,87.519,87.471,28.58086169]
[1772477568468,4.00991733,87.519,87.478,11.43133176]
[1772477568671,4.17342608,87.509,87.478,11.43133176]
[1772477568899,4.17342608,87.519,87.481,4.05287228]
[1772477569694,11.42622089,87.518,87.482,11.43092293]
[1772477569899,11.42622089,87.518,87.483,4.05287228]
[1772477571591,11.42478492,87.529,87.491,4.05287228]
[1772477571777,4.17342608,87.528,87.491,4.05287228]
[1772477571976,11.42504598,87.527,87.492,11.42961642]
[1772477572181,4.17342608,87.519,87.481,4.05287228]
[1772477572377,4.17342608,87.513,87.473,12.42300025]
[1772477572575,0.14216157,87.514,87.474,4.05287228]
[1772477572576,14.89072876,87.51,87.474,4.05287228]
[1772477574276,11.42739603,87.509,87.476,4.05287228]
[1772477574780,11.42491545,87.528,87.491,4.05287228]
[1772477574987,15.59834153,87.528,87.491,4.05287228]
[1772477575186,4.17342608,87.527,87.491,4.05287228]
[1772477576404,11.42517651,87.526,87.493,4.05287228]
[1772477576705,11.42387132,87.536,87.501,4.05287228]
[1772477578206,4.17342608,87.559,87.511,4.05287228]
[1772477578388,11.42100093,87.558,87.521,4.05287228]
[1772477578796,11.42044902,87.563,87.521,4.05287228]
[1772477579196,10.71730268,87.56,87.521,4.05287228]
[1772477579709,4.17342608,87.559,87.521,4.05287228]
[1772477579901,4.17342608,87.549,87.51,14.77017496]
[1772477580099,15.59651442,87.542,87.51,4.05287228]
[1772477580299,4.17342608,87.539,87.501,4.05287228]
[1772477580485,11.42308834,87.542,87.51,10.71730268]
[1772477580690,11.42308834,87.542,87.511,4.05287228]
[1772477581388,11.42308834,87.542,87.48,14.4111367]
[1772477581389,4.17342608,87.539,87.498,15.48167106]
[1772477581597,4.17342608,87.529,87.498,4.05287228]
[1772477581993,4.17342608,87.529,87.499,11.42870204]
[1772477582192,11.42491545,87.528,87.499,11.42870204]
[1772477583715,14.89072876,87.52,87.489,4.05287228]
[1772477583914,4.17342608,87.519,87.489,4.05287228]
[1772477584211,11.42622089,87.518,87.489,4.05287228]
[1772477584914,11.42622089,87.518,87.473,0.9909915]
[1772477584915,4.17342608,87.493,87.45,4.05287228]
[1772477585214,10.71730268,87.49,87.45,4.05287228]
[1772477585417,14.89072876,87.49,87.451,4.05287228]
[1772477585619,4.17342608,87.489,87.451,4.05287228]
[1772477586109,10.71730268,87.48,87.451,4.05287228]
[1772477586506,4.17342608,87.479,87.441,4.05287228]
[1772477586720,10.71730268,87.47,87.441,4.05287228]
[1772477586911,4.17342608,87.469,87.42,0.2]
[1772477587110,4.17342608,87.469,87.34,11.41]
[1772477587111,40.00548646,87.488,87.392,4.05287228]
[1772477587112,4.17342608,87.429,87.392,4.05287228]
[1772477587411,10.71730268,87.41,87.381,4.05287228]
[1772477587606,4.17342608,87.399,87.361,4.05287228]
[1772477587915,4.17342608,87.399,87.361,11.44670723]
[1772477588248,4.17342608,87.397,87.37,11.64549584]
[1772477588513,4.17342608,87.402,87.37,0.2]
[1772477589018,10.77851427,87.4,87.37,0.2]
[1772477589319,4.17342608,87.413,87.371,11.44544528]
[1772477589500,10.77851427,87.41,87.371,15.49831756]
[1772477589704,14.95194035,87.41,87.372,4.05287228]
[1772477589918,4.17342608,87.41,87.372,4.05287228]
[1772477590099,14.95194035,87.41,87.372,4.05287228]
[1772477590301,11.43991823,87.414,87.381,4.05287228]
[1772477592123,11.43916082,87.419,87.382,11.44400448]
[1772477592418,4.17342608,87.418,87.382,15.49687676]
[1772477592616,15.1742283,87.421,87.391,4.05287228]
[1772477593205,11.43902997,87.42,87.391,4.05287228]
[1772477593518,11.43902997,87.42,87.371,4.05287228]
[1772477593519,4.17342608,87.409,87.371,4.05287228]
[1772477594225,43.54951527,87.42,87.381,4.05287228]
[1772477594525,4.45774922,87.415,87.381,4.05287228]
[1772477595210,11.43966051,87.416,87.381,4.05287228]
[1772477595414,15.1742283,87.421,87.391,4.05287228]
[1772477595719,22.21754424,87.42,87.391,4.05287228]
[1772477596021,50.81511916,87.42,87.391,4.05287228]
[1772477596321,4.39752082,87.409,87.37,15.0518657]
[1772477596536,4.39752082,87.409,87.371,11.44544528]
[1772477596701,4.39752082,87.409,87.372,4.07335143]
[1772477598623,4.45113939,87.407,87.372,4.07335143]
[1772477598923,4.45113939,87.407,87.374,4.10523347]
[1772477599622,4.45113939,87.407,87.373,11.44518329]
[1772477599927,4.45113939,87.407,87.37,10.97851427]
[1772477599928,4.45113939,87.389,87.37,1e-08]
[1772477600600,40.0421014,87.408,87.372,4.10523347]
[1772477600601,11.4406004,87.408,87.372,4.10523347]
[1772477600804,4.45113939,87.399,87.37,1e-08]
[1772477601818,10.77851427,87.39,87.37,1e-08]
[1772477602015,4.45113939,87.399,87.37,1e-08]
[1772477602218,0.28432314,87.407,87.371,4.10523347]
[1772477602432,11.4406004,87.408,87.372,4.10523347]
[1772477602931,11.4406004,87.408,87.374,4.10523347]
[1772477603827,15.1742283,87.436,87.391,4.10523347]
[1772477603828,11.43798325,87.428,87.391,4.10523347]
[1772477604122,11.43588398,87.445,87.411,4.10523347]
[1772477604324,11.43405977,87.458,87.421,4.10523347]
[1772477604630,4.45113939,87.469,87.431,4.10523347]
[1772477604811,9.36256149,87.478,87.431,15.5427323]
[1772477604812,10.77851427,87.46,87.431,15.5427323]
[1772477605008,4.45113939,87.467,87.431,15.5427323]
[1772477605209,4.45113939,87.467,87.432,4.10523347]
[1772477606312,4.45113939,87.459,87.422,4.10523347]
[1772477607234,9.36256149,87.478,87.441,4.10523347]
[1772477607235,11.4315763,87.477,87.441,4.10523347]
[1772477607419,10.77851427,87.47,87.441,4.10523347]
[1772477608311,4.45113939,87.476,87.441,4.10523347]
[1772477609728,11.43183766,87.475,87.441,15.54146143]
[1772477610042,11.43183766,87.475,87.442,4.10523347]
[1772477610745,11.43183766,87.475,87.441,11.43622796]
[1772477610746,9.36256149,87.478,87.451,4.10523347]
[1772477611725,9.36256149,87.478,87.433,4.10523347]
[1772477611726,4.45113939,87.476,87.433,4.10523347]
[1772477612036,4.45113939,87.459,87.423,4.10523347]
[1772477612925,4.45113939,87.459,87.431,4.10523347]
[1772477613331,4.45113939,87.459,87.422,11.43876827]
[1772477613536,4.45113939,87.459,87.423,4.10523347]
[1772477614718,4.45113939,87.459,87.42,10.77851427]
[1772477614719,15.8851924,87.459,87.425,4.10523347]
[1772477614923,11.43405301,87.459,87.431,4.10523347]
[1772477615745,9.36256149,87.478,87.441,4.10523347]
[1772477615943,9.36256149,87.478,87.451,4.10523347]
[1772477616756,11.4315763,87.477,87.451,4.10523347]
[1772477616923,11.4315763,87.477,87.452,15.54007772]
[1772477617326,9.36256149,87.478,87.453,4.10523347]
[1772477617837,9.36256149,87.478,87.461,4.10523347]
[1772477618329,11.42880514,87.499,87.47,10.77851427]
[1772477618643,4.45113939,87.498,87.461,4.10523347]
[1772477618939,15.88010266,87.497,87.462,11.43353685]
[1772477619459,4.45113939,87.496,87.456,11.43420442]
[1772477619745,4.45113939,87.469,87.431,4.10523347]
[1772477620443,4.45113939,87.469,87.44,14.88374774]
[1772477621443,4.45113939,87.479,87.45,10.77851427]
[1772477621626,4.45113939,87.479,87.442,4.10523347]
[1772477621830,4.45113939,87.477,87.442,4.10523347]
[1772477622636,4.45113939,87.477,87.441,11.43628275]
[1772477622840,4.45113939,87.477,87.442,4.10523347]
[1772477623430,15.88201779,87.483,87.451,11.43497501]
[1772477623629,4.45113939,87.482,87.451,11.43497501]
[1772477624236,4.45113939,87.497,87.451,15.54020848]
[1772477624425,4.45113939,87.479,87.451,11.43497501]
[1772477625241,4.45113939,87.479,87.432,11.43745996]
[1772477625641,4.45113939,87.469,87.432,15.54269343]
[1772477625840,4.45113939,87.469,87.433,4.10523347]
[1772477627150,4.45113939,87.467,87.434,11.43719834]
[1772477627849,3.69383402,87.508,87.434,11.43719834]
[1772477627850,15.05893415,87.48,87.441,4.15664763]
[1772477628028,15.05893415,87.48,87.434,11.43719834]
[1772477628029,4.28041988,87.495,87.461,4.15664763]
[1772477628230,11.42870204,87.499,87.471,4.15664763]
[1772477628630,4.28041988,87.498,87.47,10.77851427]
[1772477629032,4.28041988,87.489,87.442,4.15664763]
[1772477629242,4.28041988,87.498,87.461,4.15664763]
[1772477629437,44.28133417,87.498,87.461,4.15664763]
[1772477629647,4.28041988,87.497,87.461,4.15664763]
[1772477629838,4.28041988,87.497,87.46,10.77851427]
[1772477630655,4.28041988,87.489,87.45,10.77851427]
[1772477630832,4.28041988,87.479,87.442,15.59268219]
[1772477631038,4.28041988,87.479,87.45,10.77851427]
[1772477631445,15.7118655,87.478,87.442,15.59268219]
[1772477632056,4.28041988,87.477,87.442,15.59268219]
[1772477632434,4.28041988,87.477,87.44,10.77851427]
[1772477632630,4.28041988,87.469,87.43,10.77851427]
[1772477633153,4.28041988,87.469,87.431,11.43759078]
[1772477633656,4.28041988,87.467,87.431,11.43759078]
[1772477634235,4.28041988,87.467,87.427,11.43808102]
[1772477634441,40.01463391,87.468,87.41,3.69383402]
[1772477634442,0.28432314,87.456,87.411,4.15664763]
[1772477634646,4.28041988,87.449,87.41,10.77851427]
[1772477635150,4.28041988,87.449,87.411,11.44020775]
[1772477635749,11.4353673,87.448,87.411,11.44020775]
[1772477635949,4.28041988,87.447,87.411,11.44020775]
[1772477636135,4.28041988,87.447,87.41,10.77851427]
[1772477637140,4.28041988,87.445,87.41,22.21878931]
[1772477638240,4.28041988,87.443,87.41,22.21878931]
[1772477638742,11.43510084,87.451,87.421,4.15664763]
[1772477640952,4.28041988,87.45,87.42,10.77851427]
[1772477642256,11.43445123,87.456,87.43,10.77851427]
[1772477642559,11.43382613,87.46,87.431,4.15664763]
[1772477642939,40.01509139,87.467,87.433,4.15664763]
[1772477643147,10.77851427,87.45,87.412,11.43994999]
[1772477643460,4.28041988,87.439,87.4,10.77851427]
[1772477643658,188.64257374,87.467,87.346,61.6]
[1772477643659,4.28041988,87.429,87.387,4.15664763]
[1772477643870,4.28041988,87.419,87.38,10.77851427]
[1772477644058,4.28041988,87.419,87.381,11.44413545]
[1772477645263,4.28041988,87.417,87.381,11.44413545]
[1772477645644,11.43929167,87.418,87.382,4.15664763]
[1772477645861,4.28041988,87.441,87.41,10.77851427]
[1772477646258,4.28041988,87.439,87.4,14.9351619]
[1772477647175,11.43667512,87.438,87.403,4.15664763]
[1772477647360,15.717095,87.438,87.403,4.15664763]
[1772477647678,7.12154005,87.458,87.421,4.15664763]
[1772477647872,7.12154005,87.458,87.43,10.77851427]
[1772477648163,4.28041988,87.456,87.421,4.15664763]
[1772477648344,4.28041988,87.429,87.4,3.69383402]
[1772477648662,4.28041988,87.429,87.399,11.44168781]
[1772477649367,4.28041988,87.428,87.392,4.15664763]
[1772477651454,4.28041988,87.426,87.393,11.44256404]
[1772477654291,4.28041988,87.434,87.401,4.15664763]
[1772477654965,10.7719514,87.45,87.401,4.15664763]
[1772477655164,10.7719514,87.45,87.4,10.7719514]
[1772477655165,7.12154005,87.458,87.421,4.15664763]
[1772477655367,45.70776741,87.513,87.441,4.15664763]
[1772477655368,15.05237128,87.48,87.441,4.15664763]
[1772477655585,11.43177556,87.476,87.441,4.15664763]
[1772477655817,4.40426429,87.475,87.441,4.15664763]
[1772477656188,4.40426429,87.473,87.442,11.43615196]
[1772477656388,3.69383402,87.508,87.442,11.43615196]
[1772477656389,4.40426429,87.495,87.46,10.7719514]
[1772477656588,4.40426429,87.489,87.452,4.06472657]
[1772477657688,4.2126251,87.479,87.442,4.46271068]
[1772477658196,4.2126251,87.469,87.438,11.43665776]